bitfinex-derivatives/quotes_SOLF0:USTF0_20250117
["timestamp","ask_amount","ask_price","bid_price","bid_amount"]
[1737102284022,1.5301,214.59,214.46,11.47343123]
[1737102284526,1.5301,214.59,214.47,4.6631]
[1737102285129,4.6622,214.52,214.47,4.6631]
[1737102285328,11.47343123,214.57,214.44,4.6638]
[1737102285524,1.5759,214.56,214.43,11.47343123]
[1737102285720,4.6625,214.51,214.43,11.47343123]
[1737102286533,1.5759,214.56,214.43,11.47343123]
[1737102286730,4.6631,214.48,214.4,12.98753123]
[1737102287031,11.47343123,214.54,214.4,12.98753123]
[1737102287227,1.4804,214.53,214.4,12.98753123]
[1737102287533,11.47343123,214.51,214.37,16.25343123]
[1737102287731,1.4273,214.5,214.37,16.25343123]
[1737102287932,4.6638,214.45,214.39,4.665]
[1737102288335,11.47343123,214.48,214.35,1.4493]
[1737102288828,11.47343123,214.48,214.34,11.47343123]
[1737102289025,11.47343123,214.48,214.36,4.6656]
[1737102289334,1.5375,214.47,214.34,11.47343123]
[1737102289827,4.6647,214.41,214.35,4.6659]
[1737102290133,1.5375,214.47,214.35,4.6659]
[1737102290333,1.5375,214.47,214.34,11.47343123]
[1737102290531,11.47343123,214.45,214.3,12.93493123]
[1737102290735,11.47343123,214.45,214.3,1.4615]
[1737102290925,4.6651,214.39,214.32,4.6666]
[1737102291125,4.6651,214.39,214.3,12.93493123]
[1737102291530,4.6651,214.39,214.32,4.6665]
[1737102291732,1.5674,214.44,214.32,4.6665]
[1737102291934,4.6651,214.39,214.32,4.6665]
[1737102292632,4.6651,214.39,214.33,4.6663]
[1737102293536,1.5674,214.44,214.3,12.93493123]
[1737102293741,1.5674,214.44,214.36,11.47343123]
[1737102295033,4.6646,214.41,214.36,11.47343123]
[1737102295436,1.5674,214.44,214.36,11.47343123]
[1737102295730,6.2314,214.44,214.37,4.6654]
[1737102296629,1.5674,214.44,214.36,11.47343123]
[1737102296835,4.6642,214.43,214.36,16.13913123]
[1737102297333,1.5674,214.44,214.36,11.47343123]
[1737102297539,1.5375,214.47,214.36,11.47343123]
[1737102298138,4.6642,214.43,214.36,11.47343123]
[1737102299239,4.6642,214.43,214.36,16.13903123]
[1737102299439,4.6642,214.43,214.38,7.35659675]
[1737102299641,4.6647,214.41,214.38,7.35659675]
[1737102300035,4.6647,214.41,214.37,7.35659675]
[1737102300741,4.665,214.4,214.33,4.6663]
[1737102301036,7.35659675,214.41,214.36,7.35659675]
[1737102301243,7.35659675,214.39,214.29,42.48513337]
[1737102301544,7.35659675,214.39,214.33,7.35659675]
[1737102301936,4.6656,214.37,214.33,7.35659675]
[1737102302437,7.35659675,214.39,214.29,42.48513337]
[1737102302640,4.6659,214.35,214.31,7.35659675]
[1737102304242,4.6661,214.34,214.31,7.35659675]
[1737102304438,4.6661,214.34,214.29,42.48513337]
[1737102304640,7.35659675,214.35,214.19,92.12]
[1737102304832,4.667,214.31,214.19,92.12]
[1737102305037,7.35659675,214.33,214.12,1.7309]
[1737102305335,7.35659675,214.31,214.24,7.35659675]
[1737102306436,4.6673,214.29,214.24,7.35659675]
[1737102307037,7.8347,214.35,214.26,7.35659675]
[1737102307244,7.35659675,214.34,214.16,4.82]
[1737102307438,7.8347,214.35,214.25,11.5060448]
[1737102307839,7.8347,214.35,214.16,4.82]
[1737102307840,19.3407448,214.35,214.22,11.5060448]
[1737102308341,4.6661,214.34,214.22,11.5060448]
[1737102308744,4.6661,214.34,214.26,4.6677]
[1737102308932,19.3407448,214.35,214.26,4.6677]
[1737102309134,19.3407448,214.35,214.22,11.5060448]
[1737102309643,19.3407448,214.35,214.26,4.6679]
[1737102309841,19.3407448,214.35,214.22,11.5060448]
[1737102310047,1.5198,214.35,214.25,11.5060448]
[1737102310342,1.5198,214.35,214.3,4.6669]
[1737102311236,1.5198,214.35,214.25,11.5060448]
[1737102311441,1.5198,214.35,214.28,4.6673]
[1737102311642,1.5198,214.35,214.25,11.5060448]
[1737102312243,6.1857,214.35,214.28,4.6674]
[1737102312545,6.1857,214.35,214.25,11.5060448]
[1737102312744,6.1857,214.35,214.28,4.6674]
[1737102313242,6.1857,214.35,214.25,11.5060448]
[1737102313243,1.5198,214.35,214.25,11.5060448]
[1737102313942,6.1858,214.35,214.28,4.6672]
[1737102314246,6.1858,214.35,214.25,11.5060448]
[1737102314735,6.1858,214.35,214.29,4.667]
[1737102316346,6.1858,214.35,214.28,4.6672]
[1737102316347,4.6662,214.34,214.28,4.6672]
[1737102316547,4.6662,214.34,214.25,11.5060448]
[1737102316941,4.6664,214.33,214.28,4.6674]
[1737102317141,161.75995522,214.55,214.31,11.5060448]
[1737102317345,1.5028,214.43,214.31,11.5060448]
[1737102317546,13.0577448,214.41,214.31,4.6667]
[1737102317749,13.0577448,214.41,214.27,11.5060448]
[1737102318339,2.37079758,214.52,214.38,11.5060448]
[1737102318542,2.9291,214.51,214.38,11.5060448]
[1737102319140,4.6631,214.49,214.42,4.6643]
[1737102319642,2.9291,214.51,214.39,4.665]
[1737102319846,2.9291,214.51,214.38,11.5060448]
[1737102320249,4.6638,214.45,214.38,16.1711448]
[1737102320449,11.5060448,214.48,214.35,11.5060448]
[1737102320941,1.4529,214.47,214.36,4.6657]
[1737102321147,6.2729,214.47,214.36,4.6657]
[1737102322249,1.4529,214.47,214.38,11.5060448]
[1737102322551,4.6628,214.5,214.38,11.5060448]
[1737102322752,2.9291,214.51,214.41,11.5060448]
[1737102323054,1.5028,214.51,214.45,4.6636]
[1737102323251,3.0164,214.56,214.44,11.5060448]
[1737102323552,4.6617,214.55,214.47,4.6633]
[1737102324545,4.6617,214.55,214.48,4.6631]
[1737102324949,4.6617,214.55,214.44,11.5060448]
[1737102325347,4.6617,214.55,214.47,4.6633]
[1737102325752,3.0164,214.56,214.47,4.6633]
[1737102326056,4.6619,214.54,214.45,4.6636]
[1737102326251,4.6619,214.54,214.44,11.5060448]
[1737102326755,4.6619,214.54,214.45,4.6636]
[1737102326949,4.6619,214.54,214.44,11.5060448]
[1737102327153,4.6619,214.54,214.46,4.6635]
[1737102327348,4.6619,214.54,214.39,1.5413]
[1737102327349,11.5060448,214.54,214.41,11.5060448]
[1737102327550,11.5060448,214.54,214.41,16.1704448]
[1737102327750,11.5060448,214.51,214.38,11.5060448]
[1737102327954,4.6634,214.47,214.38,11.5060448]
[1737102328558,4.6635,214.46,214.39,4.6649]
[1737102329062,11.5060448,214.51,214.35,11.5060448]
[1737102329262,11.5060448,214.48,214.35,11.5060448]
[1737102329466,11.5060448,214.48,214.32,11.5060448]
[1737102329467,11.5060448,214.45,214.32,11.5060448]
[1737102330162,11.5060448,214.45,214.33,4.6663]
[1737102330358,11.5060448,214.45,214.32,11.5060448]
[1737102330566,11.5060448,214.45,214.3,42.48585326]
[1737102330764,11.5060448,214.45,214.3,47.15265326]
[1737102330964,11.5060448,214.42,214.3,42.48585326]
[1737102331768,4.6653,214.38,214.31,4.6667]
[1737102332667,4.6655,214.37,214.3,42.48585326]
[1737102333160,11.5060448,214.42,214.3,42.48585326]
[1737102333362,4.6652,214.39,214.3,42.48585326]
[1737102333563,11.5060448,214.42,214.3,42.48585326]
[1737102333868,4.6656,214.37,214.3,42.48585326]
[1737102334269,4.6656,214.37,214.3,47.15285326]
[1737102334470,4.6648,214.41,214.3,42.48585326]
[1737102335166,11.5060448,214.42,214.3,42.48585326]
[1737102335464,16.3260448,214.45,214.32,11.5060448]
[1737102335673,4.82,214.45,214.32,11.5060448]
[1737102335966,4.6646,214.41,214.32,11.5060448]
[1737102336168,9.228,214.47,214.32,11.5060448]
[1737102336368,11.5060448,214.43,214.32,11.5060448]
[1737102336870,11.5060448,214.43,214.3,42.48585326]
[1737102337267,4.6661,214.35,214.3,42.48585326]
[1737102338267,11.5060448,214.4,214.3,47.15285326]
[1737102338674,11.5060448,214.4,214.3,42.48585326]
[1737102338972,4.6662,214.34,214.3,42.48585326]
[1737102339369,4.6659,214.35,214.3,42.48585326]
[1737102342073,11.5060448,214.37,214.26,4.6677]
[1737102342274,11.5060448,214.34,214.23,11.5060448]
[1737102342570,4.6672,214.29,214.24,4.6683]
[1737102342770,4.6672,214.29,214.22,1.536]
[1737102342771,11.5060448,214.34,214.2,11.5060448]
[1737102342974,11.5060448,214.31,214.21,5.20737897]
[1737102343272,4.6677,214.27,214.22,4.6686]
[1737102345479,3.1357,214.36,214.17,16.3060448]
[1737102345480,4.6681,214.25,214.17,16.3060448]
[1737102346275,4.6681,214.25,214.18,5.2097487]
[1737102346575,11.5060448,214.28,214.18,5.2097487]
[1737102346771,4.6681,214.25,214.19,4.6694]
[1737102347176,4.6684,214.24,214.19,4.6694]
[1737102347878,11.5060448,214.31,214.23,4.6684]
[1737102348182,11.5060448,214.34,214.23,11.5060448]
[1737102349381,4.6668,214.32,214.26,4.6677]
[1737102349579,11.5060448,214.34,214.23,11.5060448]
[1737102349778,4.6668,214.32,214.26,4.6679]
[1737102350075,11.5060448,214.34,214.23,11.5060448]
[1737102350580,3.1357,214.36,214.23,11.5060448]
[1737102350977,11.5060448,214.34,214.2,11.5060448]
[1737102351180,11.5060448,214.31,214.17,11.5060448]
[1737102351582,4.6683,214.24,214.18,4.6694]
[1737102351781,11.5060448,214.28,214.14,11.5060448]
[1737102351982,1.5128,214.27,214.14,11.5060448]
[1737102352182,4.6683,214.25,214.14,11.5060448]
[1737102352682,4.6683,214.25,214.19,4.6693]
[1737102352983,4.6683,214.25,214.14,11.5060448]
[1737102353182,11.5060448,214.25,214.01,6.38021486]
[1737102353381,11.5060448,214.25,214.11,11.5060448]
[1737102353709,11.5060448,214.25,214.14,4.6704]
[1737102353915,4.6692,214.2,214.14,4.6704]
[1737102354216,11.5060448,214.25,214.11,11.5060448]
[1737102354409,11.5060448,214.25,214.11,16.1771448]
[1737102354806,11.5060448,214.25,214.11,11.5060448]
[1737102355006,11.5060448,214.25,214.14,4.6705]
[1737102356005,4.6687,214.23,214.11,11.5060448]
[1737102356506,11.5060448,214.25,214.11,11.5060448]
[1737102358192,4.6688,214.22,214.15,4.6703]
[1737102358793,4.6688,214.22,214.11,11.5060448]
[1737102359685,4.6686,214.23,214.14,11.5060448]
[1737102359884,1.467,214.26,214.14,11.5060448]
[1737102360390,11.5060448,214.24,214.14,11.5060448]
[1737102360587,11.5060448,214.24,214.11,11.5060448]
[1737102361692,4.669,214.21,214.16,4.67]
[1737102362383,11.5060448,214.24,214.14,4.6703]
[1737102363189,11.5060448,214.24,214.11,11.5060448]
[1737102363591,1.467,214.26,214.14,11.5060448]
[1737102363997,4.6684,214.24,214.14,11.5060448]
[1737102364188,1.467,214.26,214.17,11.5060448]
[1737102364397,1.5128,214.27,214.2,11.5060448]
[1737102364694,7.7354,214.34,214.15,4.82]
[1737102364894,7.7354,214.34,214.2,11.5060448]
[1737102365094,7.7354,214.34,214.22,4.6686]
[1737102365095,4.6677,214.27,214.22,4.6686]
[1737102365399,11.5060448,214.32,214.2,11.5060448]
[1737102366301,4.6678,214.27,214.21,4.669]
[1737102367300,4.6678,214.27,214.2,11.5060448]
[1737102367501,4.6675,214.28,214.22,4.6687]
[1737102367996,2.9154,214.34,214.2,11.5060448]
[1737102368202,4.6666,214.33,214.27,4.6676]
[1737102369503,4.6666,214.33,214.26,4.6679]
[1737102370205,2.9154,214.34,214.23,11.5060448]
[1737102370508,11.5060448,214.31,214.17,11.5060448]
[1737102371004,1.5727,214.3,214.19,4.6694]
[1737102371205,1.5727,214.3,214.06,212.88625966]
[1737102371206,11.5060448,214.25,214.12,5.19990621]
[1737102371607,4.669,214.21,214.15,4.6701]
[1737102372702,11.5060448,214.22,214.11,11.5060448]
[1737102373006,4.6694,214.19,214.14,4.6704]
[1737102373608,11.5060448,214.22,214.09,3.57157356]
[1737102373804,4.6698,214.17,214.12,4.6708]
[1737102374503,4.6701,214.16,214.11,4.6711]
[1737102375504,4.6698,214.18,214.12,4.6709]
[1737102375905,3.0429,214.24,214.11,11.5060448]
[1737102376402,4.6687,214.23,214.14,4.6703]
[1737102376601,4.6687,214.23,214.11,11.5060448]
[1737102376802,4.6687,214.23,214.14,11.5060448]
[1737102377202,3.0429,214.24,214.14,11.5060448]
[1737102377408,3.0429,214.24,214.11,11.5060448]
[1737102377605,3.0429,214.24,214.1,1.5143]
[1737102378104,3.0429,214.24,214.13,11.5060448]
[1737102378707,1.4513,214.27,214.16,11.5060448]
[1737102378912,4.82,214.3,214.16,11.5060448]
[1737102379218,4.82,214.3,214.22,4.6687]
[1737102379710,4.82,214.3,214.16,11.5060448]
[1737102380112,4.6685,214.23,214.18,4.6696]
[1737102380301,4.6685,214.23,214.13,4.82]
[1737102380302,11.5060448,214.28,214.13,16.3260448]
[1737102380716,4.6688,214.22,214.16,4.6699]
[1737102381210,11.5060448,214.28,214.16,4.6699]
[1737102381411,4.6688,214.22,214.16,4.6699]
[1737102381712,11.5060448,214.28,214.16,4.6699]
[1737102381910,11.5060448,214.28,214.13,16.3260448]
[1737102382110,4.6688,214.22,214.13,16.3260448]
[1737102382611,11.5060448,214.28,214.13,16.3260448]
[1737102382814,4.669,214.21,214.16,4.6698]
[1737102383011,11.5060448,214.25,214.1,13.0203448]
[1737102383211,4.82,214.3,214.1,13.0203448]
[1737102383212,4.6696,214.19,214.1,13.0203448]
[1737102383413,11.5060448,214.22,214.09,3.57157356]
[1737102383814,11.5060448,214.22,214.11,9.90023744]
[1737102384316,11.5060448,214.22,214.11,5.22913744]
[1737102384717,11.5060448,214.22,214.09,3.57157356]
[1737102385218,4.67,214.17,214.12,4.6709]
[1737102385518,11.5060448,214.19,214.09,3.57157356]
[1737102385712,11.5060448,214.19,214.04,0.2174]
[1737102385913,4.6704,214.15,214.09,4.6715]
[1737102386417,4.6704,214.15,214.1,4.6713]
[1737102388317,4.6704,214.15,214.11,4.6711]
[1737102389418,4.6704,214.15,214.05,11.5060448]
[1737102389920,4.6704,214.15,214.06,5.23729167]
[1737102390220,4.6704,214.15,214.05,11.5060448]
[1737102390419,4.6704,214.15,214.11,4.6711]
[1737102391321,11.5060448,214.19,214.05,11.5060448]
[1737102391521,4.6705,214.14,214.09,4.6714]
[1737102391821,11.5060448,214.16,214.06,5.23801072]
[1737102392013,1.5077,214.15,214.06,5.23801072]
[1737102392215,1.5077,214.15,214.02,13.0149448]
[1737102392418,2.9515,214.15,214.03,1.38986005]
[1737102392617,2.9515,214.15,214.02,13.0149448]
[1737102392822,4.5052,214.15,214.04,5.23886379]
[1737102393721,16.0112448,214.15,214.02,11.5060448]
[1737102394225,4.6712,214.11,214.06,4.672]
[1737102394722,4.5052,214.15,214.05,11.5060448]
[1737102395319,4.6707,214.13,214.08,4.6718]
[1737102395521,4.5052,214.15,214.05,11.5060448]
[1737102396125,2.9515,214.15,214.05,11.5060448]
[1737102396423,7.6218,214.15,214.1,4.6712]
[1737102397519,4.6703,214.15,214.11,4.671]
[1737102399327,11.5060448,214.18,214.05,11.5060448]
[1737102399528,4.671,214.12,214.07,4.672]
[1737102400019,4.6713,214.11,214.02,11.5060448]
[1737102400418,1.5768,214.14,214.02,11.5060448]
[1737102401825,4.6714,214.1,213.99,16.3260448]
[1737102402027,11.5060448,214.12,213.99,16.3260448]
[1737102402427,11.5060448,214.12,213.99,11.5060448]
[1737102402728,13.0828448,214.14,213.99,11.5060448]
[1737102403226,13.0828448,214.14,214.02,11.5060448]
[1737102403425,1.5768,214.14,214.02,11.5060448]
[1737102404228,13.0828448,214.14,213.98,5.0416]
[1737102404428,13.0828448,214.14,213.99,11.5060448]
[1737102404729,4.6716,214.09,214.04,4.6726]
[1737102405131,4.6716,214.09,213.99,11.5060448]
[1737102405327,16.1774448,214.11,214.05,4.6724]
[1737102405528,11.5060448,214.11,214.05,4.6724]
[1737102406031,4.6716,214.09,214.04,4.6727]
[1737102406226,4.6716,214.09,213.99,11.5060448]
[1737102406227,11.5060448,214.11,213.97,1.5179]
[1737102406430,4.6724,214.06,213.97,1.5179]
[1737102407435,11.5060448,214.05,213.96,3.57361372]
[1737102407835,4.6729,214.03,213.97,4.6741]
[1737102408032,11.5060448,214.05,213.92,11.5060448]
[1737102410132,16.1785448,214.05,213.99,4.6736]
[1737102412232,16.1785448,214.05,214.0,4.6735]
[1737102412428,11.5060448,214.08,213.92,11.5060448]
[1737102412628,1.5089,214.09,213.98,11.5060448]
[1737102412937,1.5134,214.1,214.01,11.5060448]
[1737102413137,13.0828448,214.14,214.01,11.5060448]
[1737102413327,17.7533448,214.14,214.01,11.5060448]
[1737102413637,17.7533448,214.14,214.08,4.6717]
[1737102414840,1.5768,214.14,214.1,4.6713]
[1737102415339,1.5768,214.14,214.09,4.6716]
[1737102417274,1.5768,214.14,214.04,11.5060448]
[1737102417475,6.2473,214.14,214.07,4.6718]
[1737102417772,1.5768,214.14,214.07,4.6718]
[1737102417974,13.0828448,214.14,214.04,4.6725]
[1737102418376,13.0828448,214.14,214.01,11.5060448]
[1737102419257,4.6714,214.1,214.04,4.6726]
[1737102419465,0.18214,214.16,214.08,11.5060448]
[1737102419762,0.18214,214.16,214.13,4.6707]
[1737102421945,0.18214,214.16,214.11,11.5060448]
[1737102422146,0.18214,214.16,214.15,4.6703]
[1737102423749,4.6683,214.25,214.19,4.6692]
[1737102423947,1.566,214.26,214.14,11.5060448]
[1737102424154,1.566,214.26,214.15,11.5060448]
[1737102424750,1.566,214.26,214.2,4.6691]
[1737102425451,1.566,214.26,214.18,4.6696]
[1737102425846,1.566,214.26,214.15,11.5060448]
[1737102426552,4.6685,214.24,214.17,4.6698]
[1737102426856,1.566,214.26,214.15,11.5060448]
[1737102427051,11.5060448,214.25,214.12,11.5060448]
[1737102427353,11.5060448,214.22,214.11,4.84]
[1737102427953,4.6694,214.19,214.13,4.6707]
[1737102428555,4.6692,214.2,214.13,4.6707]
[1737102428852,4.84,214.24,214.11,4.84]
[1737102429046,4.84,214.24,214.12,11.5060448]
[1737102429242,1.566,214.26,214.2,4.6692]
[1737102429942,6.2339,214.26,214.2,4.6692]
[1737102430852,4.6681,214.25,214.19,4.6694]
[1737102431355,1.566,214.26,214.15,11.5060448]
[1737102431655,6.2339,214.26,214.2,4.6692]
[1737102432550,1.566,214.26,214.15,11.5060448]
[1737102432949,194.11194626,214.39,214.21,11.5060448]
[1737102433255,13.0026448,214.33,214.21,11.5060448]
[1737102433458,13.0026448,214.33,214.17,11.5060448]
[1737102433750,4.667,214.3,214.2,11.5060448]
[1737102433956,13.0026448,214.33,214.2,11.5060448]
[1737102435053,13.0026448,214.33,214.22,4.6685]
[1737102436046,4.6672,214.29,214.22,4.6685]
[1737102436250,13.0026448,214.33,214.24,4.6682]
[1737102436554,1.4966,214.33,214.2,11.5060448]
[1737102436746,4.6669,214.31,214.2,11.5060448]
[1737102437854,1.4966,214.33,214.2,11.5060448]
[1737102438053,1.4966,214.33,214.23,11.5060448]
[1737102438561,4.6668,214.31,214.25,4.668]
[1737102438855,1.4966,214.33,214.23,11.5060448]
[1737102439252,4.6668,214.32,214.26,4.6678]
[1737102439458,1.4966,214.33,214.23,11.5060448]
[1737102440957,4.6666,214.32,214.23,11.5060448]
[1737102441155,1.4966,214.33,214.26,11.5060448]
[1737102441954,16.3260448,214.4,214.28,4.6674]
[1737102442259,17.7625448,214.4,214.26,11.5060448]
[1737102442661,1.4365,214.4,214.29,11.5060448]
[1737102442860,1.4365,214.4,214.27,4.82]
[1737102443161,1.4365,214.4,214.32,11.5060448]
[1737102443360,1.4365,214.4,214.32,16.1724448]
[1737102443661,1.4365,214.4,214.32,4.6664]
[1737102443862,1.4365,214.4,214.29,11.5060448]
[1737102444055,1.4365,214.4,214.27,4.82]
[1737102444056,11.5060448,214.39,214.27,4.82]
[1737102444658,4.666,214.35,214.27,9.4874]
[1737102444960,11.5060448,214.39,214.27,4.6674]
[1737102445263,11.5060448,214.39,214.26,4.6679]
[1737102445960,4.6663,214.34,214.23,11.5060448]
[1737102446365,4.6663,214.34,214.28,4.6674]
[1737102446865,4.6663,214.34,214.26,11.5060448]
[1737102447068,4.6664,214.33,214.27,4.6676]
[1737102448358,4.6669,214.31,214.23,11.5060448]
[1737102448559,11.5060448,214.36,214.23,11.5060448]
[1737102448955,11.5060448,214.36,214.24,4.6683]
[1737102449156,11.5060448,214.36,214.23,11.5060448]
[1737102449658,4.6668,214.32,214.25,4.668]
[1737102450157,11.5060448,214.33,214.22,4.6686]
[1737102450468,2.9924,214.32,214.21,42.5018511]
[1737102450765,2.9924,214.32,214.23,11.5060448]
[1737102451260,2.9924,214.32,214.26,11.5060448]
[1737102451572,4.82,214.38,214.26,11.5060448]
[1737102451795,6.3088,214.38,214.26,11.5060448]
[1737102452179,4.6663,214.34,214.28,4.6674]
[1737102452695,4.667,214.3,214.24,4.6681]
[1737102453182,4.6666,214.32,214.26,4.6678]
[1737102453377,11.5060448,214.36,214.23,11.5060448]
[1737102453874,4.6665,214.33,214.23,11.5060448]
[1737102454311,11.5060448,214.36,214.23,11.5060448]
[1737102454766,4.6668,214.31,214.23,11.5060448]
[1737102455868,6.3088,214.38,214.27,4.6676]
[1737102456063,6.3088,214.38,214.26,11.5060448]
[1737102456565,4.6659,214.36,214.29,4.6672]
[1737102456764,1.4888,214.38,214.29,4.6672]
[1737102457164,4.666,214.35,214.29,4.6672]
[1737102457964,4.6661,214.34,214.29,4.6672]
[1737102459369,4.6661,214.34,214.28,4.6674]
[1737102460470,4.6659,214.35,214.29,4.6672]
[1737102461466,1.4888,214.38,214.26,11.5060448]
[1737102461770,4.6661,214.34,214.28,4.6674]
[1737102462068,4.6661,214.34,214.26,11.5060448]
[1737102462069,1.4888,214.38,214.26,11.5060448]
[1737102462871,4.6663,214.34,214.28,4.6673]
[1737102463468,4.6663,214.34,214.29,4.6672]
[1737102464578,4.6663,214.34,214.26,11.5060448]
[1737102465272,1.4888,214.38,214.26,11.5060448]
[1737102465475,4.6659,214.35,214.26,11.5060448]
[1737102465678,1.4888,214.38,214.26,11.5060448]
[1737102467075,4.6662,214.34,214.29,4.667]
[1737102467574,4.6662,214.34,214.29,12.02968006]
[1737102467775,1.4888,214.38,214.33,7.36268006]
[1737102467968,1.4888,214.38,214.35,7.36268006]
[1737102468173,1.5036,214.41,214.35,7.36268006]
[1737102468469,6.1683,214.41,214.35,12.02858006]
[1737102469276,6.1683,214.41,214.36,4.6656]
[1737102469574,1.5036,214.41,214.36,4.6656]
[1737102470576,1.5483,214.43,214.38,4.6652]
[1737102471581,1.5483,214.43,214.36,16.16223394]
[1737102471782,1.5483,214.43,214.33,11.49673394]
[1737102472677,1.5483,214.43,214.3,11.49673394]
[1737102472979,16.29673394,214.42,214.27,16.29673394]
[1737102473280,11.49673394,214.39,214.27,16.29673394]
[1737102473580,4.6662,214.34,214.28,4.6674]
[1737102475575,4.6668,214.31,214.24,16.16483394]
[1737102476280,1.4942,214.35,214.24,11.49673394]
[1737102476471,1.4942,214.35,214.27,11.49673394]
[1737102476979,6.1601,214.35,214.29,4.667]
[1737102477783,1.4942,214.35,214.24,11.49673394]
[1737102477977,4.6674,214.29,214.22,4.6687]
[1737102478184,12.99093394,214.35,214.22,4.6687]
[1737102479079,11.49673394,214.32,214.21,58.66748504]
[1737102480484,4.6677,214.27,214.21,58.66748504]
[1737102480877,1.4907,214.31,214.21,42.5018511]
[1737102481083,2.9959,214.31,214.21,42.5018511]
[1737102481586,4.6682,214.25,214.21,42.5018511]
[1737102481887,11.49673394,214.29,214.21,42.5018511]
[1737102482086,11.49673394,214.29,214.19,3.57020299]
[1737102482379,4.6684,214.24,214.19,3.57020299]
[1737102482583,11.49673394,214.29,214.19,3.57020299]
[1737102483979,4.6688,214.22,214.19,3.57020299]
[1737102484178,11.49673394,214.29,214.19,3.57020299]
[1737102484384,11.49673394,214.26,214.12,11.49673394]
[1737102484588,4.6692,214.21,214.14,4.6705]
[1737102484783,1.4643,214.25,214.14,4.6705]
[1737102485380,4.6692,214.2,214.13,9.92161239]
[1737102485786,4.6692,214.2,214.14,5.25091239]
[1737102485990,4.6692,214.2,214.14,9.92141239]
[1737102486188,4.6692,214.2,214.14,4.6705]
[1737102486890,4.6694,214.19,214.13,4.6707]
[1737102487090,1.4643,214.25,214.13,4.6707]
[1737102487790,1.4643,214.25,214.12,11.49673394]
[1737102487986,1.4643,214.25,214.14,4.6705]
[1737102488191,1.4643,214.25,214.15,11.49673394]
[1737102488394,4.6685,214.23,214.15,11.49673394]
[1737102488987,4.6685,214.23,214.15,16.16683394]
[1737102489195,4.6685,214.23,214.15,11.49673394]
[1737102489490,12.96103394,214.25,214.14,4.6703]
[1737102489691,12.96103394,214.25,214.11,4.8]
[1737102489891,4.6696,214.19,214.11,4.8]
[1737102490390,12.96103394,214.25,214.1,11.49673394]
[1737102490596,11.49673394,214.22,214.1,11.49673394]
[1737102490798,1.4919,214.21,214.1,11.49673394]
[1737102490995,1.4919,214.21,214.07,11.49673394]
[1737102491196,1.4466,214.2,214.07,11.49673394]
[1737102492095,4.6703,214.15,214.08,4.6716]
[1737102492899,4.6703,214.15,214.07,11.49673394]
[1737102492900,4.6709,214.13,214.07,11.49673394]
[1737102493098,11.49673394,214.19,214.07,11.49673394]
[1737102493897,11.49673394,214.19,214.09,4.6716]
[1737102494400,11.49673394,214.19,214.07,11.49673394]
[1737102494595,1.4466,214.2,214.07,11.49673394]
[1737102495100,4.6698,214.18,214.11,4.671]
[1737102495595,1.4466,214.2,214.03,4.8]
[1737102495596,1.4466,214.2,214.07,11.49673394]
[1737102495997,1.4466,214.2,214.08,4.6716]
[1737102496196,1.4466,214.2,214.07,11.49673394]
[1737102497101,4.6703,214.16,214.09,4.6714]
[1737102497502,1.4466,214.2,214.07,11.49673394]
[1737102497803,11.49673394,214.19,214.07,11.49673394]
[1737102498297,4.6705,214.14,214.08,4.6717]
[1737102503310,4.6707,214.13,214.08,4.6717]
[1737102503505,4.6707,214.13,214.06,11.49673394]
[1737102503705,4.6707,214.13,214.07,4.6719]
[1737102505910,4.6707,214.13,214.08,4.6718]
[1737102507308,4.6707,214.13,214.08,12.04898967]
[1737102509213,4.6707,214.13,214.1,7.37718967]
[1737102509915,1.4466,214.2,214.12,7.37718967]
[1737102510110,8.86908967,214.21,214.16,7.37718967]
[1737102511116,128.79959908,214.31,214.18,7.37718967]
[1737102511317,8.84148967,214.25,214.18,7.37718967]
[1737102511615,4.6687,214.23,214.18,7.37718967]
[1737102512113,8.84148967,214.25,214.2,7.37718967]
[1737102512717,1.4643,214.25,214.2,7.37718967]
[1737102513114,6.1324,214.25,214.2,7.37718967]
[1737102513310,6.1324,214.25,214.19,4.6693]
[1737102513516,6.1324,214.25,214.17,11.51320922]
[1737102513815,1.4643,214.25,214.17,11.51320922]